fUST/lending_fUST_20250822
["ID","MTS","AMOUNT","RATE_DAILY","PERIOD"]
[380746004,1755856246765,-633.57,0.000263,10]
[380746006,1755856246775,-682.57,0.00026301,10]
[380746008,1755856246784,-770.73,0.00026301,10]
[380746010,1755856246793,-480.0,0.00026301,10]
[380746012,1755856246803,-1167.48,0.00026301,10]
[380746014,1755856246812,-480.0,0.00026301,10]
[380746016,1755856246821,-480.0,0.00026301,10]
[380746018,1755856246830,-183.0,0.00026313,2]
[380746020,1755856246840,-153.0,0.00026468,2]
[380746022,1755856246850,-153.0,0.00026468,2]
[380746024,1755856246859,-153.0,0.00026468,2]
[380746026,1755856246869,-153.0,0.00026468,2]
[380746028,1755856246879,-153.0,0.00026468,2]
[380746030,1755856246889,-153.0,0.00026468,2]
[380746032,1755856246899,-153.0,0.00026468,2]
[380746034,1755856246908,-153.0,0.00026468,2]
[380746036,1755856246917,-153.0,0.00026468,2]
[380746038,1755856246926,-153.0,0.00026468,2]
[380746040,1755856246935,-153.0,0.00026468,2]
[380746042,1755856246944,-153.0,0.00026468,2]
[380746044,1755856246954,-153.0,0.00026468,2]
[380746046,1755856246964,-153.0,0.00026468,2]
[380746048,1755856246974,-153.0,0.00026468,2]
[380746050,1755856246984,-153.0,0.00026468,2]
[380746052,1755856246993,-153.0,0.00026468,2]
[380746054,1755856247003,-153.0,0.00026468,2]
[380746056,1755856247012,-153.0,0.00026468,2]
[380746058,1755856247022,-153.0,0.00026468,2]
[380746060,1755856247031,-974.87,0.00026485,2]
[380746062,1755856247040,-637.0,0.00026485,2]
[380746064,1755856247049,-2154.0,0.00026485,2]
[380746066,1755856247059,-289.974,0.00026485,2]
[380746068,1755856247068,-408.0,0.00026485,2]
[380746070,1755856247077,-168.0,0.00026486,2]
[380746072,1755856247086,-886.56447447,0.00026559,5]
[380746074,1755856247095,-633.57,0.00026574,10]
[380746087,1755856247211,-160.0,0.00026574,10]
[380746089,1755856247220,-360.0,0.00026574,2]
[380746091,1755856247229,-682.57,0.00026575,10]
[380746093,1755856247238,-770.73,0.00026575,10]
[380746095,1755856247247,-480.0,0.00026575,10]
[380746097,1755856247257,-1167.48,0.00026575,10]
[380746099,1755856247266,-480.0,0.00026575,10]
[380746101,1755856247275,-480.0,0.00026575,10]
[380746103,1755856247284,-183.0,0.00026584,2]
[380746105,1755856247294,-216.0706074,0.00026673,2]
[380746107,1755856247303,-1680.0,0.0002672,2]
[380746108,1755856247312,-168.0,0.0002678,2]
[380746110,1755856247324,-633.57,0.00026848,10]
[380746112,1755856247333,-682.57,0.00026849,10]
[380746114,1755856247343,-770.73,0.00026849,10]
[380746116,1755856247352,-480.0,0.00026849,10]
[380746118,1755856247362,-1167.48,0.00026849,10]
[380746120,1755856247372,-480.0,0.00026849,10]
[380746122,1755856247382,-480.0,0.00026849,10]
[380746124,1755856247391,-168.0,0.00026946,2]
[380746126,1755856247399,-168.0,0.00027091,2]
[380746128,1755856247409,-633.57,0.00027122,10]
[380746130,1755856247418,-460.0,0.00027122,2]
[380746131,1755856247428,-682.57,0.00027123,10]
[380746133,1755856247437,-770.73,0.00027123,10]
[380746135,1755856247446,-480.0,0.00027123,10]
[380746137,1755856247456,-1167.48,0.00027123,10]
[380746139,1755856247466,-480.0,0.00027123,10]
[380746141,1755856247476,-480.0,0.00027123,10]
[380746143,1755856247486,-87547.3198666,0.00027387,2]
[380746145,1755856247496,-3673.17057961,0.00027387,2]
[380746147,1755856247505,-633.57,0.00027396,10]
[380746149,1755856247515,-682.57,0.00027397,10]
[380746151,1755856247524,-770.73,0.00027397,10]
[380746153,1755856247533,-480.0,0.00027397,10]
[380746155,1755856247543,-1167.48,0.00027397,10]
[380746157,1755856247553,-480.0,0.00027397,10]
[380746159,1755856247564,-480.0,0.00027397,10]
[380746161,1755856247573,-500.0,0.00027397,5]
[380746163,1755856247583,-1000.0,0.00027406,2]
[380746165,1755856247592,-8094.39825024,0.00027407,2]
[380746166,1755856247603,-792.0,0.00027435,2]
[380746169,1755856247613,-792.0,0.00027435,2]
[380746170,1755856247622,-225.352103,0.00027435,2]
[380746172,1755856247634,-151.0,0.00027435,2]
[380746174,1755856247645,-151.0,0.00027435,2]
[380746176,1755856247655,-500.0,0.00027435,2]
[380746178,1755856247665,-198.0,0.00027435,2]
[380746180,1755856247674,-151.0,0.00027435,2]
[380746182,1755856247684,-284.88869581,0.00027435,2]
[380746184,1755856247693,-151.0,0.00027466,2]
[380746186,1755856247703,-265.5918929,0.00027491,30]
[380746188,1755856247712,-153.0,0.00027491,30]
[380746190,1755856247721,-153.0,0.00027491,30]
[380746192,1755856247731,-153.0,0.00027491,30]
[380746194,1755856247740,-153.0,0.00027491,30]
[380746196,1755856247750,-153.0,0.00027491,30]
[380746198,1755856247759,-153.0,0.00027491,30]
[380746200,1755856247768,-153.0,0.00027491,30]
[380746202,1755856247777,-153.0,0.00027491,30]
[380746204,1755856247787,-160.0,0.00027494,5]
[380746206,1755856247796,-2000.0,0.000275,2]
[380746208,1755856247805,-301.95400157,0.00027505,10]
[380746210,1755856247815,-489.33304169,0.00027506,2]
[380746212,1755856247824,-1523.74099373,0.00027506,2]
[380746214,1755856247833,-509463.46217154,0.00027507,20]
[380746217,1755856247852,-383.27,0.00027507,20]
[380754453,1755856337268,1177.36008701,0.000199,2]
[380762502,1755856505711,1992.2572012,0.000199,2]
[380762503,1755856506164,1992.25720098,0.0002101,2]
[380762504,1755856670602,1859.44005448,0.000199,2]
[380762505,1755856671464,1859.44005424,0.0002101,2]
[380762507,1755856835206,1735.47738417,0.000199,2]
[380762508,1755856835930,1735.47738395,0.0002101,2]
[380762509,1755856866066,-336.33989217,0.00021919,2]
[380762510,1755857002859,1619.77889188,0.000199,2]
[380762511,1755857003835,1619.77889168,0.0002101,2]
[380762512,1755857168920,1511.79363237,0.000199,2]
[380762513,1755857169630,1511.79363223,0.0002101,2]
[380762514,1755857266439,151.3846268,0.00020968,2]
[380762515,1755857334159,1411.00739012,0.000199,2]
[380762516,1755857335079,1411.00739008,0.0002101,2]
[380762562,1755857432447,-52.74645739,0.00021919,2]
[380762564,1755857432456,-152.07119749,0.00022019,2]
[380762566,1755857432465,-169.29014745,0.0002212,2]
[380762568,1755857432477,-1241.71724263,0.0002212,2]
[380762570,1755857432486,-179.0,0.00023,7]
[380762572,1755857432495,-829.30710914,0.00023229,2]
[380762574,1755857432507,-581.70028094,0.00023229,2]
[380762576,1755857432516,-1411.00739008,0.00024339,2]
[380762578,1755857432525,-1200.0,0.00024564,2]
[380762580,1755857432535,-671.0,0.00024565,2]
[380762582,1755857432544,-300.0,0.00024567,2]
[380762584,1755857432553,-4221.70192714,0.00024568,2]
[380762586,1755857432562,-376.07413479,0.00024568,2]
[380762587,1755857432572,-215.90555669,0.00024568,2]
[380762588,1755857432581,-472.39449805,0.00024632,2]
[380762590,1755857432590,-272.0,0.00024657,10]
[380762592,1755857432599,-480.0,0.00024657,10]
[380762595,1755857432608,-155.5,0.00024767,7]
[380762597,1755857432617,-151.39,0.00024767,7]
[380762600,1755857432626,-155.5,0.00024867,7]
[380762602,1755857432635,-151.39,0.00024867,7]
[380762604,1755857432644,-480.0,0.0002493,10]
[380762606,1755857432654,-294.65739973,0.0002493,10]
[380762607,1755857432663,-785.15,0.0002493,10]
[380762608,1755857432672,-482.73,0.0002493,10]
[380762609,1755857432681,-480.0,0.0002493,10]
[380762610,1755857432691,-155.51442929,0.00024967,7]
[380762611,1755857432700,-151.39,0.00024967,7]
[380762612,1755857432709,-349.5270689,0.00025014,2]
[380762613,1755857432719,-151.39,0.00025067,7]
[380762614,1755857432728,-151.39,0.00025167,7]
[380762615,1755857432737,-577.48,0.00025203,10]
[380762616,1755857432746,-480.0,0.00025204,10]
[380762617,1755857432755,-785.15,0.00025204,10]
[380762618,1755857432764,-482.73,0.00025204,10]
[380762619,1755857432773,-210.89878257,0.00025266,10]
[380762620,1755857432783,-480.0,0.00025266,10]
[380762621,1755857432792,-480.0,0.00025266,10]
[380762622,1755857432801,-480.0,0.00025266,10]
[380762623,1755857432811,-151.39,0.00025267,7]
[380762625,1755857432820,-528.92858739,0.00025304,2]
[380762627,1755857432829,-151.39,0.00025367,7]
[380762629,1755857432839,-161.08931106,0.00025391,2]
[380762631,1755857432848,-500.0,0.00025442,2]
[380762633,1755857432857,-1411.00739008,0.00025449,3]
[380762635,1755857432866,-151.39,0.00025467,7]
[380762637,1755857432875,-577.48,0.00025477,10]
[380762639,1755857432884,-480.0,0.00025478,10]
[380762640,1755857432893,-528.9579881,0.00025478,10]
[380762642,1755857432902,-785.15,0.00025478,10]
[380762644,1755857432912,-482.73,0.00025478,10]
[380762646,1755857432921,-417.15472785,0.00025478,10]
[380762648,1755857432934,-160.0,0.00025478,10]
[380762651,1755857432944,-203.07640265,0.00025478,10]
[380762652,1755857432953,-480.0,0.0002554,10]
[380762654,1755857432963,-480.0,0.0002554,10]
[380762656,1755857432972,-480.0,0.0002554,10]
[380762658,1755857432981,-151.39,0.00025567,7]
[380762660,1755857432991,-151.39,0.00025667,7]
[380762662,1755857432999,-577.48,0.00025751,10]
[380762664,1755857433010,-480.0,0.00025752,10]
[380762666,1755857433019,-785.15,0.00025752,10]
[380762668,1755857433028,-482.73,0.00025752,10]
[380762670,1755857433037,-151.39,0.00025767,7]
[380762672,1755857433047,-480.0,0.00025814,10]
[380762674,1755857433056,-480.0,0.00025814,10]
[380762676,1755857433066,-480.0,0.00025814,10]
[380762678,1755857433076,-151.39,0.00025867,7]
[380762680,1755857433085,-973.0,0.0002589,2]
[380762682,1755857433096,-151.0,0.00025966,2]
[380762684,1755857433106,-151.39,0.00025967,7]
[380762686,1755857433116,-637.0,0.00025981,2]
[380762688,1755857433125,-2154.0,0.00025981,2]
[380762690,1755857433135,-577.48,0.00026025,10]
[380762692,1755857433144,-480.0,0.00026026,10]
[380762694,1755857433153,-785.15,0.00026026,10]
[380762696,1755857433164,-482.73,0.00026026,10]
[380762697,1755857433173,-151.39,0.00026067,7]
[380762699,1755857433183,-480.0,0.00026088,10]
[380762701,1755857433193,-480.0,0.00026088,10]
[380762703,1755857433203,-480.0,0.00026088,10]
[380762705,1755857433212,-160.0,0.00026093,2]
[380762707,1755857433222,-151.39,0.00026167,7]
[380762709,1755857433231,-152.07119748,0.000262,2]
[380762711,1755857433240,-151.39,0.00026267,7]
[380762713,1755857433249,-577.48,0.00026299,10]
[380762715,1755857433259,-480.0,0.000263,10]
[380762717,1755857433268,-785.15,0.000263,10]
[380762719,1755857433278,-482.73,0.000263,10]
[380762721,1755857433288,-480.0,0.00026362,10]
[380762723,1755857433298,-480.0,0.00026362,10]
[380762725,1755857433307,-480.0,0.00026362,10]
[380762727,1755857433317,-151.4,0.00026367,7]
[380762729,1755857433327,-150.352,0.00026485,2]
[380762731,1755857433337,-195.869,0.00026489,2]
[380762733,1755857433346,-177.014,0.00026489,2]
[380762735,1755857433356,-1411.00739008,0.00026559,5]
[380762737,1755857433366,-577.48,0.00026573,10]
[380762739,1755857433375,-480.0,0.00026574,10]
[380762741,1755857433384,-785.15,0.00026574,10]
[380762743,1755857433394,-482.73,0.00026574,10]
[380762745,1755857433403,-420.0,0.00026626,2]
[380762747,1755857433413,-480.0,0.00026636,10]
[380762749,1755857433423,-480.0,0.00026636,10]
[380762751,1755857433432,-480.0,0.00026636,10]
[380762752,1755857433442,-260.0,0.00026641,2]
[380762754,1755857433452,-411.0,0.00026744,2]
[380762756,1755857433461,-577.48,0.00026847,10]
[380762758,1755857433471,-480.0,0.00026848,10]
[380762761,1755857433481,-785.15,0.00026848,10]
[380762762,1755857433490,-482.73,0.00026848,10]
[380762765,1755857433500,-480.0,0.0002691,10]
[380762767,1755857433510,-480.0,0.0002691,10]
[380762769,1755857433520,-480.0,0.0002691,10]
[380762771,1755857433528,-153.0,0.00026943,2]
[380762773,1755857433538,-153.0,0.00026943,2]
[380762774,1755857433548,-153.0,0.00026943,2]
[380762776,1755857433557,-153.0,0.00026943,2]
[380762778,1755857433567,-153.0,0.00026943,2]
[380762780,1755857433576,-153.0,0.00026943,2]
[380762782,1755857433587,-528.9579881,0.00027,3]
[380762784,1755857433596,-528.9579881,0.00027,3]
[380762786,1755857433606,-577.48,0.00027121,10]
[380762788,1755857433615,-480.0,0.00027122,10]
[380762790,1755857433625,-785.15,0.00027122,10]
[380762792,1755857433635,-482.73,0.00027122,10]
[380762794,1755857433645,-480.0,0.00027184,10]
[380762796,1755857433655,-480.0,0.00027184,10]
[380762798,1755857433665,-480.0,0.00027184,10]
[380762800,1755857433674,-360.0,0.00027189,2]
[380762802,1755857433684,-313.58488704,0.00027295,2]
[380762804,1755857433694,-1037.0705405,0.00027295,2]
[380762807,1755857433704,-2200.0,0.00027306,2]
[380762809,1755857433713,-313.584887,0.00027325,2]
[380762811,1755857433724,-151.0,0.00027335,2]
[380762813,1755857433733,-313.584887,0.00027355,2]
[380762815,1755857433742,-1037.07054048,0.00027355,2]
[380762817,1755857433751,-506.75615709,0.00027374,2]
[380762819,1755857433761,-500.0,0.00027374,2]
[380762821,1755857433770,-500.0,0.00027374,2]
[380762823,1755857433780,-500.0,0.00027374,2]
[380762825,1755857433789,-500.0,0.00027374,2]
[380762827,1755857433798,-500.0,0.00027374,2]
[380762829,1755857433808,-500.0,0.00027374,2]
[380762830,1755857433817,-500.0,0.00027374,2]
[380762832,1755857433827,-500.0,0.00027374,2]
[380762834,1755857433836,-503.50739152,0.00027374,2]
[380762837,1755857433847,-500.0,0.00027374,2]
[380762838,1755857433856,-500.0,0.00027374,2]
[380762840,1755857433866,-500.0,0.00027374,2]
[380762842,1755857433875,-500.0,0.00027374,2]
[380762844,1755857433885,-500.0,0.00027374,2]
[380762846,1755857433895,-504.60472814,0.00027374,2]
[380762848,1755857433904,-500.0,0.00027374,2]
[380762850,1755857433913,-500.0,0.00027374,2]
[380762852,1755857433925,-500.0,0.00027374,2]
[380762854,1755857433934,-500.0,0.00027374,2]
[380762856,1755857433943,-476.44103899,0.00027374,2]
[380762858,1755857433953,-500.0,0.00027374,2]
[380762860,1755857433962,-500.0,0.00027374,2]
[380762862,1755857433971,-421.51830766,0.00027374,2]
[380762864,1755857433981,-500.0,0.00027374,2]
[380762866,1755857433990,-500.0,0.00027374,2]
[380762868,1755857434002,-500.0,0.00027374,2]
[380762870,1755857434011,-596.81530941,0.00027374,2]
[380762872,1755857434020,-500.0,0.00027374,2]
[380762874,1755857434029,-500.0,0.00027374,2]
[380762876,1755857434039,-359.59316047,0.00027374,2]
[380762878,1755857434048,-500.0,0.00027374,2]
[380762880,1755857434058,-500.0,0.00027374,2]
[380762882,1755857434067,-8987.27187761,0.00027375,2]
[380762884,1755857434080,-432.9976535,0.00027375,2]
[380762886,1755857434092,-446.55424473,0.00027375,2]
[380762888,1755857434103,-1560.84570219,0.00027375,2]
[380762891,1755857434114,-1710.0,0.00027375,2]
[380762893,1755857434125,-1576.02789312,0.00027375,2]
[380763304,1755857438427,-160.0,0.00024536,2]
[380763306,1755857438437,-77539.69767269,0.00027375,2]
[380763308,1755857438449,-5298.5188089,0.00027375,2]
[380763318,1755857438534,-2152.11438167,0.00027375,2]
[380763320,1755857438545,-5808.39561084,0.00027375,2]
[380763322,1755857438556,-4342.98950061,0.00027375,2]
[380763324,1755857438567,-533.92,0.00027375,2]
[380763327,1755857438579,-2015.51730841,0.00027375,2]
[380763330,1755857438590,-1293.46874142,0.00027375,2]
[380763333,1755857438600,-444.99950906,0.00027375,2]
[380763336,1755857438612,-301706.45046225,0.00027375,2]
[380763338,1755857438621,-31405.6084557,0.00027375,2]
[380763340,1755857438630,-313.584887,0.00027384,2]
[380763342,1755857438647,-577.48,0.00027395,10]
[380763344,1755857438657,-27916.096405,0.00027396,2]
[380763346,1755857438666,-480.0,0.00027396,10]
[380763348,1755857438679,-785.15,0.00027396,10]
[380763350,1755857438689,-482.73,0.00027396,10]
[380763352,1755857438700,-557.69743085,0.00027397,5]
[380763354,1755857438709,-2566.19296661,0.00027405,2]
[380763356,1755857438718,-19636.10378756,0.00027406,2]
[380764068,1755857446637,-160.0,0.00024536,2]
[380764069,1755857446647,-480.0,0.00025203,10]
[380764070,1755857446656,-4.8038749,0.00025981,2]
[380764071,1755857446798,-480.0,0.00025477,10]
[380764072,1755857446808,-403.1961251,0.00025981,2]
[380764073,1755857446818,-350363.89621244,0.00027406,2]
[380764074,1755857446828,-313.584887,0.00027414,2]
[380764075,1755857446837,-1037.07054048,0.00027414,2]
[380764076,1755857446847,-7284.95842527,0.00027414,2]
[380764077,1755857446859,-726.0,0.00027435,2]
[380764078,1755857446869,-151.0,0.00027435,2]
[380764079,1755857446879,-500.0,0.00027435,2]
[380764080,1755857446888,-480.0,0.00027458,10]
[380764081,1755857446898,-480.0,0.00027458,10]
[380764082,1755857446907,-480.0,0.00027458,10]
[380764083,1755857446917,-500.42099317,0.00027473,5]
[380764084,1755857446929,-258.17001686,0.00027497,2]
[380764085,1755857446939,-1023.0,0.000275,2]
[380764086,1755857446949,-1000.0,0.00027506,2]
[380764087,1755857446961,-1000.0,0.00027506,2]
[380764088,1755857446972,-155.34788587,0.00027506,2]
[380764089,1755857446981,-151.0,0.00027506,2]
[380764090,1755857446990,-151.0,0.00027506,2]
[380764091,1755857447001,-151.0,0.00027506,2]
[380764092,1755857447012,-151.0,0.00027506,2]
[380764093,1755857447022,-151.0,0.00027506,2]
[380764094,1755857447031,-1763.0,0.00027511,3]
[380764095,1755857447041,-1790.85791216,0.00027511,3]
[380764096,1755857447050,-200.0,0.00027514,7]
[380764097,1755857447060,-200.0,0.00027514,7]
[380764098,1755857447070,-200.0,0.00027514,7]
[380764099,1755857447079,-200.0,0.00027514,7]
[380764100,1755857447089,-200.0,0.00027514,7]
[380764102,1755857447099,-151.0,0.00027514,7]
[380764104,1755857447108,-151.0,0.00027514,7]
[380764106,1755857447117,-151.0,0.00027514,7]
[380764108,1755857447127,-416853.34003866,0.00027514,20]
[380766089,1755857499717,1428.59759691,0.000199,2]
[380766090,1755857499971,1428.59759668,0.0002101,2]
[380766094,1755857664068,1365.69595452,0.000199,2]
[380766095,1755857664196,1365.6959544,0.0002101,2]
[380766096,1755857829574,1274.64955744,0.000199,2]
[380766097,1755857830400,1274.64955744,0.0002101,2]
[380766098,1755857994276,1240.22796382,0.000199,2]
[380766099,1755857995150,1240.22796369,0.0002101,2]
[380766100,1755858159223,1157.54609956,0.000199,2]
[380766101,1755858159828,1157.54609944,0.0002101,2]
[380766102,1755858164912,605.15301553,0.00020905,6]
[380766103,1755858324410,1080.37635969,0.000199,2]
[380766104,1755858324470,1080.37635947,0.0002101,2]
[380766105,1755858327497,160.0,0.0002,3]
[380766112,1755858491207,1008.35126909,0.000199,2]
[380766113,1755858491318,1008.35126883,0.0002101,2]
[380766124,1755858631733,-9448.74752071,0.000215,2]
[380766125,1755858631742,-214.01359237,0.00022019,2]
[380766126,1755858631750,-300.0,0.00022119,2]
[380766127,1755858631759,-300.0,0.00022119,2]
[380766128,1755858631768,-707.40473868,0.0002212,2]
[380766129,1755858631780,-300.94653015,0.0002212,2]
[380766130,1755858631790,-445.29286803,0.00023,7]
[380766132,1755858631805,-56.42713197,0.00023,7]
[380766133,1755858631814,-446.34109267,0.00023,10]
[380766134,1755858631825,-53.65890733,0.00023,10]
[380766135,1755858631833,-270.43030706,0.00023,10]
[380766220,1755858638012,-199.0,0.000229,10]
[380766221,1755858638022,-229.56969294,0.00023,10]
[380766222,1755858638031,-1008.35126883,0.00023229,2]
[380766223,1755858638042,-420.0,0.00024033,2]
[380766224,1755858638051,-1008.35126883,0.00024339,2]
[380766225,1755858638060,-450.20326359,0.0002452,2]
[380766226,1755858638071,-19.51480241,0.0002452,2]
[380766227,1755858638081,-1109.0,0.00024535,2]
[380766228,1755858638093,-376.07413479,0.00024536,2]
[380766229,1755858638104,-215.90555669,0.00024536,2]
[380766230,1755858638113,-160.0,0.00024607,2]
[380766231,1755858638123,-160.0,0.00024607,2]
[380766232,1755858638132,-232.32572668,0.00024607,2]
[380766233,1755858638140,-160.0,0.00024607,2]
[380766234,1755858638149,-160.0,0.00024607,2]
[380766235,1755858638158,-160.0,0.00024607,2]
[380766236,1755858638167,-151.0,0.00025304,2]
[380766237,1755858638176,-1200.0,0.00025408,2]
[380766238,1755858638185,-1200.0,0.00025433,2]
[380766239,1755858638194,-1200.0,0.00025526,2]
[380766240,1755858638203,-1200.0,0.00025549,2]
[380766241,1755858638212,-480.0,0.00025619,10]
[380766242,1755858638221,-480.0,0.00025619,10]
[380766243,1755858638230,-480.0,0.00025619,10]
[380766244,1755858638240,-480.0,0.00025619,10]
[380766245,1755858638364,-1200.0,0.00025764,2]
[380766246,1755858638374,-558.17977943,0.00025787,2]
[380766253,1755858639918,-641.82022057,0.00025787,2]
[380766254,1755858639928,-480.0,0.00025837,10]
[380766255,1755858639937,-480.0,0.00025837,10]
[380766256,1755858639947,-480.0,0.00025837,10]
[380766257,1755858639957,-1200.0,0.00025864,2]
[380766258,1755858639967,-480.0,0.00025892,2]
[380766259,1755858639976,-480.0,0.00025893,10]
[380766260,1755858639985,-480.0,0.00025893,10]
[380766261,1755858639995,-480.0,0.00025893,10]
[380766262,1755858640004,-480.0,0.00025893,10]
[380766263,1755858640014,-1200.0,0.00025912,2]
[380766264,1755858640023,-1200.0,0.00026089,2]
[380766265,1755858640032,-480.0,0.00026111,10]
[380766266,1755858640041,-563.1938642,0.00026111,10]
[380766267,1755858640051,-480.0,0.00026111,10]
[380766268,1755858640061,-587.0,0.00026112,2]
[380766269,1755858640070,-1200.0,0.00026132,2]
[380766270,1755858640080,-1200.0,0.00026139,2]
[380766271,1755858640089,-521.0747032,0.00026166,2]
[380766272,1755858640099,-480.0,0.00026167,10]
[380766273,1755858640108,-480.0,0.00026167,10]
[380766274,1755858640117,-480.0,0.00026167,10]
[380766275,1755858640127,-480.0,0.00026167,10]
[380766276,1755858640136,-1200.0,0.000262,2]
[380766277,1755858640145,-1200.0,0.00026275,2]
[380766278,1755858640155,-1200.0,0.00026306,2]
[380766279,1755858640164,-480.0,0.00026385,10]
[380766280,1755858640174,-480.0,0.00026385,10]
[380766281,1755858640183,-1200.0,0.00026438,2]
[380766282,1755858640193,-480.0,0.00026441,10]
[380766283,1755858640203,-480.0,0.00026441,10]
[380766284,1755858640213,-480.0,0.00026441,10]
[380766285,1755858640224,-480.0,0.00026441,10]
[380766286,1755858640234,-160.0,0.00026478,2]
[380766287,1755858640243,-1200.0,0.00026518,2]
[380766288,1755858640253,-973.0,0.0002654,2]
[380766289,1755858640262,-2154.0,0.0002654,2]
[380766290,1755858640273,-637.0,0.0002654,2]
[380766291,1755858640283,-408.0,0.0002654,2]
[380766292,1755858640294,-1008.35126883,0.00026559,5]
[380766293,1755858640303,-1200.0,0.00026584,2]
[380766294,1755858640314,-480.0,0.00026659,10]
[380766295,1755858640323,-480.0,0.00026659,10]
[380766296,1755858640333,-151.0,0.00026673,2]
[380766297,1755858640343,-480.0,0.00026715,10]
[380766298,1755858640354,-480.0,0.00026715,10]
[380766299,1755858640364,-480.0,0.00026715,10]
[380766300,1755858640374,-480.0,0.00026715,10]
[380766301,1755858640383,-1200.0,0.00026724,2]
[380766302,1755858640393,-1200.0,0.00026769,2]
[380766303,1755858640402,-1200.0,0.00026796,2]
[380766304,1755858640412,-1200.0,0.00026819,2]
[380766305,1755858640422,-160.0,0.00026909,10]
[380766306,1755858640431,-528.9579881,0.00026909,10]
[380766307,1755858640441,-480.0,0.00026933,10]
[380766308,1755858640453,-480.0,0.00026933,10]
[380766309,1755858640463,-346.32567581,0.00026987,2]
[380766310,1755858640474,-450.72651661,0.00026987,2]
[380766311,1755858640484,-500.0,0.00026987,2]
[380766312,1755858640494,-170.85791208,0.00026987,2]
[380766313,1755858640505,-40083.3798446,0.00026988,2]
[380766327,1755858645756,-174.76353445,0.00025015,2]
[380766328,1755858645766,-174.76353445,0.00025015,2]
[380766329,1755858645775,-2070.57883047,0.00026988,2]
[380766330,1755858655567,806.68101518,0.000199,2]
[380766331,1755858656063,806.68101506,0.0002101,2]
[380766332,1755858821647,1103.63137056,0.000199,2]
[380766333,1755858822506,1103.6313705,0.0002101,2]
[380766334,1755858988622,1030.0559458,0.000199,2]
[380766335,1755858989540,1030.0559458,0.0002101,2]
[380766337,1755859155013,961.38554951,0.000199,2]
[380766338,1755859155278,961.38554941,0.0002101,2]
[380766339,1755859322393,897.121601,0.000199,2]
[380766426,1755859489617,867.05315382,0.000199,2]
[380766427,1755859489653,867.05315353,0.0002101,2]
[380766428,1755859641124,-867.05315353,0.0002212,2]
[380766429,1755859641145,-867.05315353,0.00023229,2]
[380766430,1755859641166,-867.05315353,0.00024339,2]
[380766431,1755859641185,-844.33851978,0.000246,2]
[380766432,1755859641204,-160.0,0.000246,2]
[380766433,1755859641223,-160.0,0.000246,2]
[380766434,1755859641243,-1150.0,0.0002495,2]
[380766435,1755859641262,-421.99638535,0.00025432,10]
[380766436,1755859641281,-500.0,0.00025474,2]
[380766437,1755859641300,-500.0,0.00025484,2]
[380766438,1755859641320,-300.0,0.0002553,2]
[380766439,1755859641339,-1200.0,0.00025531,2]
[380766440,1755859641358,-500.0,0.00025532,2]
[380766441,1755859641376,-500.0,0.00025536,2]
[380766442,1755859641396,-500.0,0.00025695,2]
[380766443,1755859641415,-500.0,0.0002571,2]
[380766444,1755859641433,-160.0,0.00025721,2]
[380766445,1755859641453,-500.0,0.00025924,2]
[380766446,1755859641473,-500.0,0.00025938,2]